[Event "5th EKA IIFL Investment 2019"]
[Site "Mumbai"]
[Date "2019.12.30"]
[Round "1.34"]
[White "Madjidov, Jasur"]
[Black "Mendonca, Leon Luke"]
[Result "0-1"]
[ECO "E32"]
[WhiteElo "2136"]
[BlackElo "2398"]
[Annotator "ChessBase"]
[PlyCount "88"]
[EventDate "2019.12.30"]
[EventType "swiss"]
[EventCountry "IND"]
[SourceTitle "playchess.com"]
[Source "ChessBase"]
[SourceQuality "1"]
[TimeControl "40/5400+30:1800+30"]

1. d4 {[%emt 0:00:00]} Nf6 {[%emt 0:00:00]} 2. c4 {[%emt 0:00:00]} e6 {[%emt 0:00:03]} 3. Nc3 {[%emt 0:00:07]} Bb4 {[%emt 0:00:14]} 4. Qc2 {[%emt 0:00:11]} O-O {[%emt 0:00:39]} 5. a3 {[%emt 0:00:08]} Bxc3+ {[%emt 0:00:16]} 6. Qxc3 {[%emt 0:00:13]} b6 {[%emt 0:00:52]} 7. Bg5 {[%emt 0:00:12]} Bb7 {[%emt 0:00:33]} 8. e3 {[%emt 0:00:11]} d6 {[%emt 0:07:55]} 9. f3 {[%emt 0:00:30]} h6 {[%emt 0:03:00]} 10. Bh4 {[%emt 0:00:30]} c5 {[%emt 0:03:12]} 11. dxc5 {[%emt 0:36:18]} dxc5 {[%emt 0:02:13]} 12. Rd1 {[%emt 0:06:15]} Qe7 {[%emt 0:03:55]} 13. Bg3 {[%emt 0:05:21]} Rd8 {[%emt 0:01:44]} 14. Rxd8+ {[%emt 0:12:15]} Qxd8 {[%emt 0:00:26]} 15. Bd3 {[%emt 0:01:40]} Nbd7 {[%emt 0:10:23]} 16. Ne2 {[%emt 0:03:50]} Nh5 {[%emt 0:03:34]} 17. Bf2 {[%emt 0:02:36]} Qg5 {[%emt 0:02:00]} 18. Ng3 {[%emt 0:01:34]} Nxg3 {[%emt 0:03:21]} 19. hxg3 {[%emt 0:00:08]} e5 {[%emt 0:22:02]} 20. g4 {[%emt 0:16:58]} e4 {[%emt 0:03:21]} 21. Be2 {[%emt 0:00:21]} exf3 {[%emt 0:03:15]} 22. gxf3 {[%emt 0:00:03]} Re8 {[%emt 0:03:27]} 23. Rh5 {[%emt 0:02:27]} Qg6 {[%emt 0:04:08]} 24. Rf5 {[%emt 0:04:14]} Qe6 {[%emt 0:03:24]} 25. Rh5 {[%emt 0:03:06]} Ne5 {[%emt 0:01:55]} 26. Rh3 {[%emt 0:00:17]} h5 {[%emt 0:03:09]} 27. Qc2 {[%emt 0:01:04]} hxg4 {[%emt 0:07:17]} 28. Qh7+ {[%emt 0:00:08]} Kf8 {[%emt 0:00:01]} 29. Bh4 {[%emt 0:01:14]} Ng6 {[%emt 0:01:05]} 30. fxg4 {[%emt 0:00:13]} Be4 {[%emt 0:01:32]} 31. Qh5 {[%emt 0:01:34]} f6 {[%emt 0:01:29]} 32. Bf2 {[%emt 0:00:43]} Kf7 {[%emt 0:00:53]} 33. g5 {[%emt 0:01:31]} Rh8 {[%emt 0:01:39]} 34. Qxg6+ {[%emt 0:00:34]} Bxg6 {[%emt 0:00:50]} 35. Rxh8 {[%emt 0:00:02]} Qe4 {[%emt 0:01:22]} 36. Kf1 {[%emt 0:00:34]} Qb1+ {[%emt 0:00:11]} 37. Kg2 {[%emt 0:00:17]} Be4+ {[%emt 0:00:06]} 38. Kg3 {[%emt 0:00:13]} Qxb2 {[%emt 0:00:56]} 39. Bg4 {[%emt 0:01:17]} Qe5+ {[%emt 0:00:17]} 40. Kh3 {[%emt 0:00:00]} Qxg5 {[%emt 0:00:00]} 41. Rh5 {[%emt 0:03:56]} Qg6 {[%emt 0:01:23]} 42. Bg3 {[%emt 0:01:46]} Bg2+ {[%emt 0:00:46]} 43. Kh4 {[%emt 0:02:09]} Qe4 {[%emt 0:00:35]} 44. Bf2 {[%emt 0:01:45]} Bf3 {[%emt 0:00:13]} 0-1

[Event "5th EKA IIFL Investment 2019"]
[Site "Mumbai"]
[Date "2019.12.30"]
[Round "1.35"]
[White "Abdisalimov, Abdimalik"]
[Black "Chilukuri Sai Varshith"]
[Result "1-0"]
[ECO "A37"]
[WhiteElo "2394"]
[BlackElo "2118"]
[Annotator "ChessBase"]
[PlyCount "95"]
[EventDate "2019.12.30"]
[EventType "swiss"]
[EventCountry "IND"]
[SourceTitle "playchess.com"]
[Source "ChessBase"]
[SourceQuality "1"]
[TimeControl "40/5400+30:1800+30"]

1. c4 {[%emt 0:00:00]} g6 {[%emt 0:00:00]} 2. Nc3 {[%emt 0:01:04]} c5 {[%emt 0:00:40]} 3. g3 {[%emt 0:00:17]} Nc6 {[%emt 0:00:48]} 4. Bg2 {[%emt 0:00:11]} Bg7 {[%emt 0:00:50]} 5. Nf3 {[%emt 0:03:56]} d6 {[%emt 0:02:46]} 6. O-O {[%emt 0:00:33]} Bf5 {[%emt 0:01:09]} 7. h3 {[%emt 0:02:10]} Qd7 {[%emt 0:02:22]} 8. Kh2 {[%emt 0:00:10]} Nf6 {[%emt 0:09:52]} 9. d3 {[%emt 0:00:20]} h6 {[%emt 0:05:07]} 10. e4 {[%emt 0:00:27]} Be6 {[%emt 0:00:33]} 11. Be3 {[%emt 0:00:10]} O-O {[%emt 0:10:47]} 12. Qd2 {[%emt 0:01:08]} Kh7 {[%emt 0:02:27]} 13. b3 {[%emt 0:00:17]} a6 {[%emt 0:07:38]} 14. Nd5 {[%emt 0:01:51]} Rab8 {[%emt 0:06:31]} 15. Nxf6+ {[%emt 0:02:08]} exf6 {[%emt 0:00:34]} 16. d4 {[%emt 0:00:26]} cxd4 {[%emt 0:01:01]} 17. Nxd4 {[%emt 0:01:00]} Nxd4 {[%emt 0:00:38]} 18. Bxd4 {[%emt 0:00:26]} b5 {[%emt 0:02:28]} 19. cxb5 {[%emt 0:00:15]} Rxb5 {[%emt 0:01:49]} 20. Rad1 Rc8 {[%emt 0:11:30]} 21. Qb2 {[%emt 0:22:01]} a5 {[%emt 0:05:30]} 22. f4 {[%emt 0:12:35]} a4 {[%emt 0:07:44]} 23. b4 {[%emt 0:05:14]} a3 {[%emt 0:06:02]} 24. Qxa3 {[%emt 0:00:38]} Qb7 {[%emt 0:00:16]} 25. e5 {[%emt 0:08:15]} Bd5 {[%emt 0:00:13]} 26. Bxd5 {[%emt 0:00:34]} Qxd5 {[%emt 0:00:50]} 27. Bf2 {[%emt 0:00:35]} Qe6 {[%emt 0:04:07]} 28. exd6 {[%emt 0:00:44]} Rd5 {[%emt 0:02:22]} 29. Rxd5 {[%emt 0:01:56]} Qxd5 {[%emt 0:00:06]} 30. Bc5 {[%emt 0:04:57]} Ra8 {[%emt 0:00:37]} 31. Rd1 {[%emt 0:00:35]} Qxd1 {[%emt 0:00:56]} 32. Qxa8 {[%emt 0:00:13]} Bf8 {[%emt 0:00:14]} 33. Qxf8 {[%emt 0:08:48]} Qe2+ {[%emt 0:01:22]} 34. Kg1 {[%emt 0:00:07]} Qd1+ {[%emt 0:03:00]} 35. Kf2 {[%emt 0:00:44]} Qd2+ {[%emt 0:00:43]} 36. Kf3 {[%emt 0:00:07]} Qd3+ {[%emt 0:00:33]} 37. Be3 {[%emt 0:00:30]} Qd5+ {[%emt 0:01:26]} 38. Ke2 {[%emt 0:00:12]} Qc4+ {[%emt 0:00:27]} 39. Kd2 {[%emt 0:02:26]} Qxb4+ {[%emt 0:00:24]} 40. Kd3 {[%emt 0:00:00]} Qa3+ {[%emt 0:00:00]} 41. Kd4 {[%emt 0:01:37]} Qa4+ {[%emt 0:02:03]} 42. Kc5 {[%emt 0:00:32]} Qa3+ {[%emt 0:00:29]} 43. Kc6 {[%emt 0:01:22]} Qa4+ {[%emt 0:02:22]} 44. Kc7 {[%emt 0:01:02]} Qc4+ {[%emt 0:00:24]} 45. Kd8 {[%emt 0:00:43]} Qd5 {[%emt 0:00:58]} 46. d7 Qa5+ {[%emt 0:01:58]} 47. Ke8 {[%emt 0:01:09]} Qa8+ {[%emt 0:00:14]} 48. d8=Q {[%emt 0:00:51]} 1-0

[Event "5th EKA IIFL Investment 2019"]
[Site "Mumbai"]
[Date "2019.12.30"]
[Round "1.36"]
[White "Bommini Mounika Akshaya"]
[Black "Rajesh, V A V"]
[Result "1/2-1/2"]
[ECO "D85"]
[WhiteElo "2113"]
[BlackElo "2393"]
[Annotator "ChessBase"]
[PlyCount "114"]
[EventDate "2019.12.30"]
[EventType "swiss"]
[EventCountry "IND"]
[SourceTitle "playchess.com"]
[Source "ChessBase"]
[SourceQuality "1"]
[TimeControl "40/5400+30:1800+30"]

1. d4 {[%emt 0:00:00]} Nf6 {[%emt 0:00:00]} 2. c4 {[%emt 0:00:00]} g6 {[%emt 0:00:00]} 3. Nc3 {[%emt 0:00:04]} d5 {[%emt 0:00:00]} 4. cxd5 {[%emt 0:00:08]} Nxd5 {[%emt 0:00:06]} 5. Bd2 {[%emt 0:00:06]} Bg7 {[%emt 0:02:11]} 6. e4 {[%emt 0:00:35]} Nb6 {[%emt 0:03:46]} 7. Be3 {[%emt 0:00:12]} O-O {[%emt 0:00:50]} 8. Be2 {[%emt 0:00:10]} Nc6 {[%emt 0:01:11]} 9. Nf3 {[%emt 0:01:22]} Bg4 {[%emt 0:01:35]} 10. e5 {[%emt 0:04:31]} Nb4 {[%emt 0:01:18]} 11. Qd2 {[%emt 0:09:33]} N6d5 {[%emt 0:03:08]} 12. Nxd5 {[%emt 0:06:43]} Nxd5 {[%emt 0:00:38]} 13. Bh6 {[%emt 0:15:12]} Qd7 {[%emt 0:18:38]} 14. Bxg7 {[%emt 0:02:05]} Kxg7 {[%emt 0:00:12]} 15. h3 {[%emt 0:03:18]} Bxf3 {[%emt 0:01:59]} 16. Bxf3 {[%emt 0:02:24]} Rad8 {[%emt 0:00:45]} 17. h4 {[%emt 0:06:34]} Qf5 {[%emt 0:02:25]} 18. O-O-O {[%emt 0:05:28]} c6 {[%emt 0:08:41]} 19. Rhe1 {[%emt 0:11:03]} Rd7 {[%emt 0:08:03]} 20. h5 {[%emt 0:04:13]} Rfd8 {[%emt 0:09:05]} 21. Re4 {[%emt 0:05:12]} c5 {[%emt 0:05:19]} 22. h6+ {[%emt 0:03:55]} Kg8 {[%emt 0:01:51]} 23. Rde1 {[%emt 0:00:03]} Nb4 {[%emt 0:23:01]} 24. Bg4 {[%emt 0:02:10]} Nxa2+ {[%emt 0:02:46]} 25. Kb1 {[%emt 0:04:08]} Rxd4 {[%emt 0:00:26]} 26. Qxd4 {[%emt 0:00:05]} cxd4 {[%emt 0:00:09]} 27. Bxf5 {[%emt 0:00:20]} gxf5 {[%emt 0:00:03]} 28. Rf4 {[%emt 0:00:35]} Nb4 {[%emt 0:00:04]} 29. Rd1 {[%emt 0:02:33]} Nc6 {[%emt 0:00:14]} 30. Rxf5 {[%emt 0:00:24]} e6 {[%emt 0:04:15]} 31. Rg5+ {[%emt 0:01:09]} Kf8 {[%emt 0:00:10]} 32. f4 {[%emt 0:02:59]} Ne7 {[%emt 0:00:24]} 33. Rg3 {[%emt 0:02:27]} Nf5 {[%emt 0:01:15]} 34. Rgd3 {[%emt 0:02:09]} Ke7 {[%emt 0:00:33]} 35. R1d2 {[%emt 0:01:27]} Rg8 {[%emt 0:01:23]} 36. Rb3 {[%emt 0:00:26]} Rb8 {[%emt 0:01:04]} 37. Kc2 {[%emt 0:02:09]} Rc8+ {[%emt 0:00:13]} 38. Kd3 {[%emt 0:00:24]} Rc7 {[%emt 0:00:37]} 39. Ke4 {[%emt 0:00:21]} b6 {[%emt 0:00:34]} 40. Ra3 {[%emt 0:00:00]} a5 {[%emt 0:00:00]} 41. Rb3 {[%emt 0:07:32]} Rc6 {[%emt 0:02:19]} 42. g4 {[%emt 0:05:21]} Nxh6 {[%emt 0:00:29]} 43. Kf3 {[%emt 0:00:36]} Rc1 {[%emt 0:02:59]} 44. Rxd4 {[%emt 0:01:45]} Rf1+ {[%emt 0:00:15]} 45. Ke2 {[%emt 0:01:26]} Rh1 {[%emt 0:01:08]} 46. g5 {[%emt 0:02:52]} Nf5 {[%emt 0:00:22]} 47. Rc4 {[%emt 0:00:54]} Rh2+ {[%emt 0:00:09]} 48. Ke1 {[%emt 0:00:19]} Kf8 {[%emt 0:01:23]} 49. Rxb6 {[%emt 0:00:40]} Ne3 {[%emt 0:00:05]} 50. Re4 {[%emt 0:02:56]} Nd5 {[%emt 0:00:31]} 51. Rb3 {[%emt 0:00:59]} Kg7 {[%emt 0:00:39]} 52. Ra4 {[%emt 0:01:58]} Kg6 {[%emt 0:00:15]} 53. Rxa5 {[%emt 0:03:31]} Nxf4 {[%emt 0:00:06]} 54. Rf3 {[%emt 0:00:28]} Kxg5 {[%emt 0:00:46]} 55. Rb5 {[%emt 0:00:08]} Kg4 {[%emt 0:02:49]} 56. Ra3 {[%emt 0:01:20]} Kf5 {[%emt 0:00:38]} 57. Rb7 {[%emt 0:00:55]} Kxe5 1/2-1/2

[Event "5th EKA IIFL Investment 2019"]
[Site "Mumbai"]
[Date "2019.12.30"]
[Round "1.37"]
[White "Eraschenkov, Denis"]
[Black "Safranska, Anda"]
[Result "1-0"]
[ECO "B06"]
[WhiteElo "2386"]
[BlackElo "2112"]
[Annotator "ChessBase"]
[PlyCount "99"]
[EventDate "2019.12.30"]
[EventType "swiss"]
[EventCountry "IND"]
[SourceTitle "playchess.com"]
[Source "ChessBase"]
[SourceQuality "1"]
[TimeControl "40/5400+30:1800+30"]

1. e4 {[%emt 0:00:00]} g6 {[%emt 0:00:00]} 2. d4 {[%emt 0:00:00]} Bg7 {[%emt 0:00:00]} 3. Nf3 {[%emt 0:00:00]} a6 {[%emt 0:00:10]} 4. c4 {[%emt 0:04:38]} d6 {[%emt 0:00:07]} 5. Nc3 {[%emt 0:02:03]} e5 {[%emt 0:01:21]} 6. Bg5 {[%emt 0:04:30]} f6 {[%emt 0:00:08]} 7. Be3 {[%emt 0:00:08]} Nh6 {[%emt 0:00:11]} 8. h3 {[%emt 0:03:59]} Nf7 {[%emt 0:00:06]} 9. Qd2 {[%emt 0:12:22]} Nc6 {[%emt 0:02:39]} 10. O-O-O O-O {[%emt 0:05:29]} 11. Be2 {[%emt 0:08:43]} Kh8 {[%emt 0:11:10]} 12. Kb1 {[%emt 0:08:08]} Rb8 {[%emt 0:03:45]} 13. d5 {[%emt 0:06:27]} Ne7 {[%emt 0:00:10]} 14. Ne1 {[%emt 0:00:23]} f5 {[%emt 0:03:40]} 15. f3 {[%emt 0:01:32]} c5 {[%emt 0:04:21]} 16. dxc6 {[%emt 0:10:55]} bxc6 {[%emt 0:00:57]} 17. c5 {[%emt 0:06:51]} dxc5 {[%emt 0:48:27]} 18. Qxd8 {[%emt 0:01:15]} Rxd8 {[%emt 0:00:22]} 19. Rxd8+ {[%emt 0:04:46]} Nxd8 {[%emt 0:00:04]} 20. Bg5 {[%emt 0:00:23]} Rb7 {[%emt 0:05:18]} 21. Bxa6 {[%emt 0:01:02]} Rd7 {[%emt 0:00:05]} 22. Bxc8 {[%emt 0:00:48]} Nxc8 {[%emt 0:00:06]} 23. Bxd8 {[%emt 0:00:32]} Rxd8 {[%emt 0:00:04]} 24. Nc2 {[%emt 0:00:21]} Kg8 {[%emt 0:00:41]} 25. Ne3 {[%emt 0:01:17]} f4 {[%emt 0:00:29]} 26. Nc4 {[%emt 0:00:13]} Rd4 {[%emt 0:00:16]} 27. b3 {[%emt 0:00:10]} Nd6 {[%emt 0:00:58]} 28. Nxd6 {[%emt 0:00:15]} Rxd6 {[%emt 0:00:04]} 29. Kc2 {[%emt 0:00:22]} Bf8 {[%emt 0:01:48]} 30. Na4 {[%emt 0:02:41]} c4 {[%emt 0:02:54]} 31. bxc4 {[%emt 0:00:18]} Rd4 {[%emt 0:00:10]} 32. Kc3 {[%emt 0:00:26]} Bd6 {[%emt 0:00:18]} 33. Nb2 {[%emt 0:00:32]} Kf7 {[%emt 0:02:58]} 34. Rd1 {[%emt 0:00:54]} Ke6 {[%emt 0:00:47]} 35. Rxd4 {[%emt 0:00:44]} exd4+ {[%emt 0:00:04]} 36. Kb3 {[%emt 0:00:07]} Kd7 {[%emt 0:01:15]} 37. Nd3 {[%emt 0:00:28]} c5 {[%emt 0:00:07]} 38. Ka4 {[%emt 0:00:25]} Kc6 {[%emt 0:00:06]} 39. Ka5 {[%emt 0:00:26]} g5 {[%emt 0:00:58]} 40. Ka6 {[%emt 0:00:00]} Bb8 {[%emt 0:00:00]} 41. a4 {[%emt 0:00:29]} Bc7 {[%emt 0:00:52]} 42. e5 {[%emt 0:00:30]} Bb8 {[%emt 0:04:54]} 43. e6 {[%emt 0:13:00]} Bd6 {[%emt 0:00:55]} 44. h4 {[%emt 0:02:43]} gxh4 {[%emt 0:03:16]} 45. Ka7 {[%emt 0:00:42]} Kc7 {[%emt 0:02:00]} 46. a5 {[%emt 0:01:22]} Kc6 {[%emt 0:01:22]} 47. a6 {[%emt 0:02:47]} Kc7 {[%emt 0:01:14]} 48. Ka8 {[%emt 0:01:27]} Kc8 {[%emt 0:00:43]} 49. a7 {[%emt 0:00:22]} Kc7 {[%emt 0:00:50]} 50. Nxf4 {[%emt 0:00:25]} 1-0

[Event "5th EKA IIFL Investment 2019"]
[Site "Mumbai"]
[Date "2019.12.30"]
[Round "1.38"]
[White "Aakash Sharadchandra, Dalvi"]
[Black "Sammed Jaykumar, Shete"]
[Result "0-1"]
[ECO "A45"]
[WhiteElo "2107"]
[BlackElo "2381"]
[Annotator "ChessBase"]
[PlyCount "86"]
[EventDate "2019.12.30"]
[EventType "swiss"]
[EventCountry "IND"]
[SourceTitle "playchess.com"]
[Source "ChessBase"]
[SourceQuality "1"]
[TimeControl "40/5400+30:1800+30"]

1. d4 {[%emt 0:00:32]} Nf6 {[%emt 0:00:00]} 2. Bf4 {[%emt 0:00:34]} g6 {[%emt 0:00:15]} 3. Nc3 {[%emt 0:00:08]} d5 {[%emt 0:00:07]} 4. e3 {[%emt 0:00:05]} Bg7 {[%emt 0:00:24]} 5. h4 {[%emt 0:00:10]} h5 {[%emt 0:01:41]} 6. Nf3 {[%emt 0:02:50]} O-O {[%emt 0:00:25]} 7. Ne5 {[%emt 0:00:17]} c5 {[%emt 0:05:24]} 8. Be2 {[%emt 0:02:18]} Nc6 {[%emt 0:01:39]} 9. Qd2 {[%emt 0:01:46]} Bf5 {[%emt 0:12:06]} 10. f3 {[%emt 0:14:40]} cxd4 {[%emt 0:02:29]} 11. exd4 {[%emt 0:00:07]} Qb6 {[%emt 0:00:19]} 12. Nxc6 {[%emt 0:00:17]} Qxc6 13. O-O-O {[%emt 0:11:59]} Rfc8 {[%emt 0:04:30]} 14. Bb5 {[%emt 0:07:05]} Qb6 {[%emt 0:01:37]} 15. Bd3 {[%emt 0:00:28]} Bxd3 {[%emt 0:05:26]} 16. Qxd3 {[%emt 0:00:04]} Rc4 {[%emt 0:01:21]} 17. b3 {[%emt 0:10:01]} Rc6 {[%emt 0:02:32]} 18. Na4 {[%emt 0:00:15]} Qa5 {[%emt 0:03:13]} 19. Kb1 {[%emt 0:04:05]} Nd7 {[%emt 0:14:35]} 20. Bd2 {[%emt 0:10:07]} Qc7 {[%emt 0:00:22]} 21. g4 {[%emt 0:01:50]} Nf6 {[%emt 0:09:58]} 22. Bg5 {[%emt 0:07:05]} hxg4 {[%emt 0:07:24]} 23. Bxf6 {[%emt 0:11:40]} Rxf6 {[%emt 0:00:49]} 24. fxg4 {[%emt 0:00:04]} Rf4 {[%emt 0:00:32]} 25. Qg3 {[%emt 0:01:53]} Rc8 {[%emt 0:00:59]} 26. c3 {[%emt 0:06:41]} Bxd4 {[%emt 0:00:37]} 27. Rc1 {[%emt 0:00:34]} Be5 {[%emt 0:01:59]} 28. Qd3 {[%emt 0:00:15]} Qd7 {[%emt 0:02:29]} 29. h5 {[%emt 0:00:51]} Qxg4 {[%emt 0:03:15]} 30. hxg6 {[%emt 0:01:51]} Qf5 {[%emt 0:00:08]} 31. gxf7+ {[%emt 0:00:27]} Kxf7 {[%emt 0:00:09]} 32. Rh7+ {[%emt 0:00:58]} Ke6 {[%emt 0:00:09]} 33. Qxf5+ {[%emt 0:00:51]} Rxf5 {[%emt 0:00:05]} 34. Re1 {[%emt 0:01:04]} Kd6 {[%emt 0:00:12]} 35. b4 {[%emt 0:01:25]} b6 {[%emt 0:00:44]} 36. Re3 {[%emt 0:01:15]} Rf2 {[%emt 0:03:23]} 37. Rh5 {[%emt 0:01:08]} Bf6 {[%emt 0:00:11]} 38. Rd3 {[%emt 0:00:29]} d4 {[%emt 0:04:24]} 39. Rh1 Rc4 {[%emt 0:00:14]} 40. a3 {[%emt 0:00:00]} Kc6 {[%emt 0:00:00]} 41. cxd4 {[%emt 0:02:30]} Bxd4 {[%emt 0:01:47]} 42. Rc1 {[%emt 0:00:35]} Rxc1+ {[%emt 0:02:37]} 43. Kxc1 {[%emt 0:00:02]} Kd5 {[%emt 0:00:05]} 0-1

[Event "5th EKA IIFL Investment 2019"]
[Site "Mumbai"]
[Date "2019.12.30"]
[Round "1.39"]
[White "Manik, Mikulas"]
[Black "Kamdar Udit"]
[Result "1-0"]
[ECO "B11"]
[WhiteElo "2379"]
[BlackElo "2107"]
[Annotator "ChessBase"]
[PlyCount "79"]
[EventDate "2019.12.30"]
[EventType "swiss"]
[EventCountry "IND"]
[SourceTitle "playchess.com"]
[Source "ChessBase"]
[SourceQuality "1"]
[TimeControl "40/5400+30:1800+30"]

1. e4 {[%emt 0:00:00]} c6 {[%emt 0:03:06]} 2. Nf3 {[%emt 0:00:18]} d5 {[%emt 0:00:12]} 3. Nc3 {[%emt 0:00:02]} Bg4 {[%emt 0:01:14]} 4. h3 {[%emt 0:00:03]} Bxf3 {[%emt 0:00:08]} 5. Qxf3 {[%emt 0:00:06]} Nf6 {[%emt 0:00:35]} 6. d3 {[%emt 0:02:26]} e6 {[%emt 0:06:44]} 7. Bd2 {[%emt 0:03:08]} Nbd7 {[%emt 0:09:54]} 8. g3 {[%emt 0:03:13]} Be7 {[%emt 0:13:19]} 9. Bg2 {[%emt 0:00:36]} O-O {[%emt 0:02:42]} 10. O-O {[%emt 0:00:52]} b5 {[%emt 0:04:12]} 11. Qe2 {[%emt 0:00:25]} b4 {[%emt 0:09:00]} 12. Nd1 {[%emt 0:01:10]} Qc7 {[%emt 0:09:00]} 13. f4 {[%emt 0:02:01]} Rfd8 {[%emt 0:04:28]} 14. Nf2 {[%emt 0:07:47]} Nf8 {[%emt 0:07:56]} 15. e5 {[%emt 0:03:10]} N6d7 {[%emt 0:00:14]} 16. d4 {[%emt 0:00:02]} c5 {[%emt 0:03:14]} 17. dxc5 {[%emt 0:08:09]} Bxc5 {[%emt 0:01:05]} 18. Kh2 {[%emt 0:01:59]} Be7 {[%emt 0:05:38]} 19. c4 {[%emt 0:02:39]} bxc3 {[%emt 0:03:14]} 20. Bxc3 {[%emt 0:00:58]} Nb6 {[%emt 0:02:49]} 21. Bd4 {[%emt 0:02:41]} Rac8 {[%emt 0:02:13]} 22. Nd3 {[%emt 0:02:29]} Qc2 {[%emt 0:03:34]} 23. Qf3 {[%emt 0:02:37]} Qa4 {[%emt 0:02:41]} 24. Qe3 {[%emt 0:06:55]} Nfd7 {[%emt 0:02:52]} 25. f5 {[%emt 0:02:33]} Bf8 {[%emt 0:01:12]} 26. fxe6 {[%emt 0:01:01]} fxe6 {[%emt 0:00:02]} 27. Nf4 {[%emt 0:02:43]} Re8 {[%emt 0:01:39]} 28. b3 {[%emt 0:00:33]} Qb4 {[%emt 0:00:30]} 29. a3 {[%emt 0:01:50]} Qb5 {[%emt 0:00:06]} 30. a4 {[%emt 0:02:00]} Qa5 {[%emt 0:00:16]} 31. Nh5 {[%emt 0:01:26]} Be7 {[%emt 0:01:01]} 32. Nf6+ {[%emt 0:01:34]} Bxf6 {[%emt 0:00:37]} 33. exf6 {[%emt 0:00:04]} Nxf6 {[%emt 0:00:29]} 34. Rxf6 {[%emt 0:00:30]} gxf6 {[%emt 0:00:22]} 35. Bxf6 {[%emt 0:00:42]} d4 {[%emt 0:00:07]} 36. Qh6 {[%emt 0:04:13]} Rc7 {[%emt 0:00:15]} 37. Rf1 {[%emt 0:00:04]} Rf7 {[%emt 0:01:03]} 38. Rf4 {[%emt 0:00:16]} Rxf6 {[%emt 0:00:43]} 39. Qxf6 {[%emt 0:00:04]} Qh5 {[%emt 0:00:20]} 40. Rg4+ {[%emt 0:00:00]} 1-0

[Event "5th EKA IIFL Investment 2019"]
[Site "Mumbai"]
[Date "2019.12.30"]
[Round "1.40"]
[White "Parnali, S Dharia"]
[Black "Czebe, Attila"]
[Result "0-1"]
[ECO "A50"]
[WhiteElo "2102"]
[BlackElo "2374"]
[Annotator "ChessBase"]
[PlyCount "106"]
[EventDate "2019.12.30"]
[EventType "swiss"]
[EventCountry "IND"]
[SourceTitle "playchess.com"]
[Source "ChessBase"]
[SourceQuality "1"]
[TimeControl "40/5400+30:1800+30"]

1. d4 {[%emt 0:00:00]} Nf6 {[%emt 0:00:04]} 2. c4 {[%emt 0:00:09]} b6 {[%emt 0:01:09]} 3. Nc3 {[%emt 0:01:35]} Bb7 {[%emt 0:00:04]} 4. f3 {[%emt 0:02:15]} d5 {[%emt 0:01:55]} 5. cxd5 {[%emt 0:00:06]} Nxd5 {[%emt 0:00:07]} 6. e4 {[%emt 0:02:04]} Nxc3 {[%emt 0:00:06]} 7. bxc3 {[%emt 0:00:03]} e5 {[%emt 0:00:31]} 8. Qa4+ {[%emt 0:03:43]} Qd7 {[%emt 0:00:41]} 9. Qxd7+ {[%emt 0:07:33]} Nxd7 {[%emt 0:00:17]} 10. Be3 {[%emt 0:04:05]} Ba3 {[%emt 0:01:42]} 11. Rb1 {[%emt 0:00:50]} O-O-O {[%emt 0:08:04]} 12. Bc4 {[%emt 0:01:33]} Rhf8 {[%emt 0:02:15]} 13. Ne2 {[%emt 0:04:47]} f5 {[%emt 0:01:36]} 14. exf5 {[%emt 0:01:43]} e4 {[%emt 0:00:04]} 15. fxe4 {[%emt 0:04:41]} Bxe4 {[%emt 0:00:33]} 16. Rb3 {[%emt 0:00:27]} Bd6 {[%emt 0:00:54]} 17. O-O {[%emt 0:02:18]} Bxf5 {[%emt 0:01:19]} 18. Bf4 {[%emt 0:01:35]} Be4 {[%emt 0:01:43]} 19. Rb5 {[%emt 0:07:01]} Rde8 {[%emt 0:03:58]} 20. Rg5 {[%emt 0:01:54]} g6 {[%emt 0:00:28]} 21. Rg3 {[%emt 0:06:32]} Bb7 {[%emt 0:00:06]} 22. Bxd6 {[%emt 0:12:32]} Rxf1+ {[%emt 0:00:59]} 23. Kxf1 {[%emt 0:00:05]} cxd6 {[%emt 0:00:03]} 24. Ke1 {[%emt 0:03:22]} Nf6 {[%emt 0:01:04]} 25. Bd3 {[%emt 0:00:30]} Kd7 {[%emt 0:07:46]} 26. h4 {[%emt 0:03:55]} Be4 {[%emt 0:05:42]} 27. Bb5+ {[%emt 0:01:17]} Bc6 {[%emt 0:00:05]} 28. Bd3 {[%emt 0:00:23]} Re7 {[%emt 0:00:26]} 29. a3 {[%emt 0:04:48]} Be4 {[%emt 0:01:35]} 30. Kd2 {[%emt 0:02:50]} Nh5 {[%emt 0:03:51]} 31. Rg5 {[%emt 0:04:59]} Nf6 {[%emt 0:00:55]} 32. Rg3 {[%emt 0:00:28]} Nh5 {[%emt 0:00:40]} 33. Rg5 {[%emt 0:00:16]} Bxd3 {[%emt 0:00:06]} 34. Kxd3 {[%emt 0:00:05]} Rf7 {[%emt 0:00:41]} 35. g4 {[%emt 0:04:57]} Ng7 {[%emt 0:01:56]} 36. h5 {[%emt 0:02:03]} Rf6 {[%emt 0:02:10]} 37. d5 {[%emt 0:03:28]} Ke7 {[%emt 0:01:37]} 38. Ke3 {[%emt 0:02:18]} Rf1 {[%emt 0:03:43]} 39. Ng3 {[%emt 0:02:53]} Rg1 {[%emt 0:00:12]} 40. Kf2 {[%emt 0:00:00]} Rxg3 {[%emt 0:00:00]} 41. Kxg3 {[%emt 0:02:44]} Kf7 {[%emt 0:02:38]} 42. c4 {[%emt 0:03:20]} Ne8 {[%emt 0:00:24]} 43. Kf4 {[%emt 0:00:22]} Nf6 {[%emt 0:04:28]} 44. Ke3 {[%emt 0:03:42]} Ng8 {[%emt 0:02:46]} 45. Kf4 {[%emt 0:03:49]} Kf6 {[%emt 0:05:09]} 46. Rxg6+ {[%emt 0:07:44]} hxg6 {[%emt 0:00:12]} 47. g5+ {[%emt 0:00:02]} Kg7 {[%emt 0:00:31]} 48. h6+ {[%emt 0:00:08]} Nxh6 {[%emt 0:00:04]} 49. gxh6+ {[%emt 0:00:30]} Kxh6 {[%emt 0:00:03]} 50. Kg4 {[%emt 0:00:15]} Kg7 {[%emt 0:00:02]} 51. Kg5 {[%emt 0:00:46]} Kf7 {[%emt 0:00:02]} 52. Kg4 {[%emt 0:00:05]} Kf6 {[%emt 0:00:04]} 53. Kf4 {[%emt 0:00:05]} g5+ {[%emt 0:00:03]} 0-1